Cogmind - Beta 15 @@@ ROGUE MODE // 2025.09.13 @ 10:32:53 Player: xgames Result: Destroyed by Y-54 Guardian with Gatling Laser Performance ------------- Evolutions (4) 2000 Regions Visited (5) 1000 Robots Destroyed (77) 385 Value Destroyed (3154) 3154 Prototype IDs (8) 160 Alien Tech Used (0) 0 Bonus (0) 0 TOTAL SCORE: 6699 Bonus ------- None Cogmind --------- Core Integrity 0/850 Matter 65/300 Energy 200/200 System Corruption 4% Temperature Hot (234) Movement Flying (111) Ox1 Location -6/Factory Parts ------- > --- POWER (2) -------- Light Angular Momentum Engine Light Angular Momentum Engine > --- PROPULSION (4) --- Nuclear Pulse Thruster Nuclear Pulse Thruster Nuclear Pulse Thruster Nuclear Pulse Thruster > --- UTILITY (5) ------ Improved Cooling System Improved Signal Interpreter Advanced Terrain Scan Processor Drone Bay (1/2) > --- WEAPON (4) ------- Thermic Laser > --- INVENTORY (5) ---- Light Angular Momentum Engine Improved VTOL Module Improved Heat Sink Small Battery (100) Advanced Signal Interpreter Peak State ------------ > --- POWER ------------ Light Angular Momentum Engine Light Angular Momentum Engine > --- PROPULSION ------- Nuclear Pulse Thruster Nuclear Pulse Thruster Nuclear Pulse Thruster Nuclear Pulse Thruster > --- UTILITY ---------- Improved Cooling System Improved Signal Interpreter Advanced Terrain Scan Processor Improved System Restoration Module Drone Bay > --- WEAPON ----------- Lightning Gun Thermic Laser Thermic Laser > --- INVENTORY -------- Light Angular Momentum Engine Improved VTOL Module Improved Heat Sink Small Battery Advanced Signal Interpreter [Rating: 66] Favorites ----------- Power Fission Core Engine Light Ion Engine Power Core Fission Core Propulsion Aluminum Leg Treads Light Treads Leg Aluminum Leg Wheel Compact Wheel Flight Unit Nuclear Pulse Thruster Utility Large Storage Unit Device Improved Heat Sink Storage Large Storage Unit Processor Core Analyzer Hackware Hacking Suite Protection Improved Light Armor Plating Weapon Ion Cannon Energy Gun Heavy Particle Gun Energy Cannon Ion Cannon Ballistic Gun Light Assault Rifle Ballistic Cannon Advanced Assault Cannon Launcher Grenade Launcher Special Weapon Mining Laser Build | -11 -10 -10 -8 -7 -6 ------- Run | Yrd Mat Sub Mat Fac Fac Slots Evolved 8 | . . . 4 2 2 Power 1 | . . . . . 1 Propulsion 2 | . . . 2 . . Utility 3 | . . . 2 . 1 Weapon 2 | . . . . 2 . Parts Attached 100 | 8 5 4 18 21 44 Power 15 | 1 . . 3 3 8 Engine 11 | 1 . . 3 2 5 Core 4 | . . . . 1 3 Reactor . | . . . . . . Propulsion 26 | 2 1 1 5 5 12 Treads 10 | 1 . 1 5 . 3 Leg 7 | . . . . 5 2 Wheel 2 | 1 1 . . . . Hover . | . . . . . . Flight 7 | . . . . . 7 Utility 27 | 2 1 . 5 5 14 Device 10 | 1 . . 1 1 7 Storage 3 | 1 1 . 1 . . Processor 5 | . . . 2 1 2 Hackware 1 | . . . . . 1 Protection 8 | . . . 1 3 4 Artifact . | . . . . . . Weapon 32 | 3 3 3 5 8 10 Energy Gun 11 | 2 . . . 1 8 Energy Cannon 12 | . 2 . 2 6 2 Ballistic Gun 2 | 1 . . . 1 . Ballistic Cannon 3 | . . . 3 . . Launcher 3 | . . 3 . . . Special Weapon 1 | . 1 . . . . Impact Weapon . | . . . . . . Slashing Weapon . | . . . . . . Piercing Weapon . | . . . . . . Special Melee Weapon . | . . . . . . Unidentified Prototypes 4 | . . . . 3 1 Corrupted Parts 2 | . . . . . 2 System Corruption 2 | . . . . . 2 Parts Lost 59 | . 1 3 17 8 30 Power 8 | . . . 3 1 4 Propulsion 16 | . 1 1 7 1 6 Utility 12 | . . . 2 2 8 Weapon 23 | . . 2 5 4 12 Highest Loss Streak 11 | . 1 1 4 3 11 To Critical Strikes 1 | . . . 1 . . Average Backups 12 | 2 12 12 12 13 10 Power 1 | . 1 2 1 1 1 Propulsion 1 | 1 1 1 . . 2 Utility 5 | . 3 3 3 7 4 Weapon 4 | 1 5 6 6 4 1 Tool/Special . | . . . . . . Unused Backups 14 | . . 3 1 7 3 Power 4 | . . 1 1 1 1 Propulsion . | . . . . . . Utility 9 | . . 2 . 5 2 Weapon 1 | . . . . 1 . Tool/Special . | . . . . . . Average Slot Usage (%) 87 | . 99 100 80 80 93 Engine 6 | . 14 14 8 4 3 Core 3 | . . . . 2 8 Treads 7 | . 14 26 21 . 4 Leg 9 | . . . . 11 14 Wheel 1 | . 13 1 3 . . Flight 1 | . . . . . 6 Device 8 | . 14 14 8 5 9 Storage 7 | . 14 14 9 7 5 Processor 6 | . . . 8 8 5 Protection 5 | . . . 3 6 7 Energy Gun 5 | . 3 . . 4 12 Energy Cannon 15 | . 21 13 4 23 7 Ballistic Cannon 2 | . . . 12 1 1 Peak Build Rating 66 | 9 10 10 36 39 66 Average Rating 34 | 5 9 9 27 32 51 On Entrance 14 | . 9 10 10 16 39 Naked Turns . | . . . . . . Heaviest Build 230 | 12 30 30 230 65 103 Greatest Support 104 | 10 16 40 104 50 68 Greatest Overweight (x) 21 | 2 9 1 14 21 4 Average Overweight (x) 2 | . 1 . 1 4 1 Largest Inventory Capacity 35 | 8 15 15 35 15 15 Average Capacity 14 | 7 14 15 15 15 13 Most Carried 15 | 6 14 15 15 15 15 Average Carried 12 | 2 12 14 12 13 10 Final Capacity 15 | 8 15 15 15 15 5 Final Carried 15 | 5 14 14 12 15 5 Class Distribution -------------------- 29% | Mutant 25% | Scavenger-Gunner 16% | Tank 14% | Gunner 9% | Scavenger-Tank 4% | Skirmisher Dominant Class ---------------- Mutant | -10/Materials Mutant | -10/Subcaves Mutant | -8/Materials Scavenger-Gunner | -7/Factory Scavenger-Gunner | -6/Factory Resources | -11 -10 -10 -8 -7 -6 ----------- Run | Yrd Mat Sub Mat Fac Fac Matter Collected 2128 | 206 124 166 732 479 421 Remotely . | . . . . . . Salvage Created 2866 | 30 189 176 735 986 750 Parts 143 | 5 14 10 31 54 29 Haulers Intercepted . | . . . . . . Recyclers Shooed 1 | 1 . . . . . Parts Field Recycled . | . . . . . . Retrieved Matter . | . . . . . . Parts Self-Destructed 7 | . . 7 . . . Prevented . | . . . . . . Kills | -11 -10 -10 -8 -7 -6 ------- Run | Yrd Mat Sub Mat Fac Fac Combat Hostiles Destroyed 63 | . 5 7 19 19 13 Guns 8 | . 1 1 . 2 4 Cannons 44 | . 4 2 16 15 7 AOE 9 | . . 4 3 1 1 Classes Destroyed 14 | 1 3 2 7 1 . Worker 5 | . . . 3 1 1 Builder 2 | . . . 2 . . Tunneler 2 | 1 . . . 1 . Mechanic 1 | . . . 1 . . Watcher 4 | . 1 . 1 2 . Swarmer 6 | . 2 . . 3 1 Grunt 28 | . 3 . 9 8 8 Brawler 3 | . . . 1 2 . Duelist 1 | . . . 1 . . Sentry 6 | . . . 4 1 1 Hunter 5 | . . . 4 1 . Programmer 7 | . . . . 4 3 Artisan 1 | . . 1 . . . Subdweller 7 | . . 7 . . . Best Kill Streak 7 | 1 4 3 7 4 3 Combat Bots Only 4 | . 3 3 2 4 3 Max Kills in Single Turn 3 | 1 1 1 3 1 1 Gunslinging . | . . . . . . Exploded 2 | . . 1 2 1 1 Melee . | . . . . . . Uniques/NPCs Destroyed . | . . . . . . Combat | -11 -10 -10 -8 -7 -6 -------- Run | Yrd Mat Sub Mat Fac Fac Hostile Shots Fired 699 | . 30 31 231 155 252 Missed 175 | . 3 14 60 47 51 Hits 524 | . 27 17 171 108 201 Projectile 524 | . 27 17 171 108 201 AOE 1 | . . . . . 1 Critical Strikes 16 | . . . 4 6 6 Part Disruptions 1 | . . . . . 1 Damage Taken 8886 | . 253 534 2331 1501 4267 Core 1620 | . 27 127 434 175 857 Absorbed by Shields . | . . . . . . Ignored by Resistances 72 | . . . . . 72 Core Remaining (%) 58 | 100 . 38 21 75 . Volleys Fired 238 | 2 19 33 84 47 53 Largest 4 | 2 2 2 2 4 4 Hottest 255 | 70 160 160 120 255 255 Shots Fired 556 | 4 36 51 146 162 157 Gun 139 | 4 6 3 . 29 97 Cannon 382 | . 27 22 140 133 60 Launcher 18 | . . 12 6 . . Special 17 | . 3 14 . . . Kinetic 109 | 2 3 . 81 . 23 Thermal 354 | 2 30 39 59 162 62 Explosive 18 | . . 12 6 . . Electromagnetic 75 | . 3 . . . 72 Robot Hit Streak 18 | 1 8 18 18 8 10 Robot Miss Streak 7 | 1 3 1 4 7 4 Penetration Max . | . . . . . . Secondary Targets . | . . . . . . Shots Hit Robots 311 | 2 19 26 93 81 90 Core Hits 148 | 1 8 14 48 38 39 Critical Kills 1 | . . . . 1 . Critical Parts Destroyed . | . . . . . . Critical Strikes 10 | . . . 5 1 4 Burn 1 | . . . . . 1 Meltdown 1 | . . . . 1 . Blast 6 | . . . 5 . 1 Corrupt 2 | . . . . . 2 Melee Attacks . | . . . . . . Impact . | . . . . . . Slashing . | . . . . . . Piercing . | . . . . . . Sneak Attacks . | . . . . . . Combat Hostiles . | . . . . . . Follow-up Attacks . | . . . . . . Damage Inflicted 8283 | 30 313 905 2650 2107 2278 Guns 1476 | 30 65 37 . 379 965 Cannons 5238 | . 248 248 2158 1642 942 Explosions 1498 | . . 620 483 83 312 Melee . | . . . . . . Ramming 71 | . . . 9 3 59 Kinetic 1779 | 6 25 . 1314 . 434 Thermal 4610 | 24 248 285 844 2021 1188 Explosive 1186 | . . 620 483 83 . Electromagnetic 637 | . 40 . . . 597 Impact . | . . . . . . Slashing . | . . . . . . Piercing . | . . . . . . Highest Corruption 8 | . . . . 4 8 Average Corruption 4 | . . . . 4 4 Corruption Purged 5 | . . . . . 5 Corruption Blocked . | . . . . . . Effects 65 | . . . . 32 33 Message Errors 15 | . . . . 6 9 Matter Fused 15 | . . . . 8 7 Heat Flow Errors 10 | . . . . 7 3 Energy Discharges 7 | . . . . 2 5 Parts Fused 1 | . . . . . 1 Data Loss (minor) 7 | . . . . 6 1 Data Loss (major) 4 | . . . . 2 2 Misfires 3 | . . . . 1 2 Weapon Failures 3 | . . . . . 3 Overload Shots . | . . . . . . Overflow Damage 75 | . 20 . 8 38 9 Projectiles 75 | . 20 . 8 38 9 Explosions . | . . . . . . Melee . | . . . . . . Knockbacks 22 | . . . 17 . 5 Impact . | . . . . . . Kinetic 17 | . . . 13 . 4 Secondary 5 | . . . 4 . 1 Self-Inflicted Damage 248 | . . 145 7 28 68 Shots 10 | . . 7 1 1 1 Rammed 11 | . . . 2 . 9 Targets Rammed 13 | . . . 3 1 9 Kicked 1 | . . . . 1 . Crushed 1 | . . . 1 . . Highest Temperature 960 | 30 480 36 257 683 960 Average Temperature 185 | 18 139 22 59 163 333 Received Heat Transfer 2590 | . 51 105 918 543 973 Effects 98 | . 2 . . 15 81 Shutdowns 23 | . 1 . . 1 21 Energy Bleed 16 | . 1 . . 5 10 Interference 20 | . . . . . 20 Matter Decay 3 | . . . . 1 2 Short Circuit 5 | . . . . 1 4 Damage (minor) 9 | . . . . 3 6 Damage (major) 17 | . . . . 4 13 Damage (core) 5 | . . . . . 5 Siege Activations . | . . . . . . Martial Activations . | . . . . . . Shielding Activations . | . . . . . . Robots Disrupted . | . . . . . . Combat Hostiles . | . . . . . . Robots Corrupted 1 | . . . . . 1 Combat Hostiles 1 | . . . . . 1 Parts Fried 2 | . . . . . 2 Impact Corruptions . | . . . . . . Robots Melted 1 | . . . . 1 . Combat Hostiles 1 | . . . . 1 . Parts Melted 17 | . 2 3 1 9 2 Heat Transferred 7955 | 74 518 629 1517 3236 1981 Parts Sabotaged . | . . . . . . Parts Stolen . | . . . . . . Parts Stripped . | . . . . . . Power Chain Reactions 1 | . . . . . 1 Alert | -11 -10 -10 -8 -7 -6 ------- Run | Yrd Mat Sub Mat Fac Fac Maximum Alert Level 1 | . . . 1 1 . Low Security (%) 84 | 100 100 . 85 70 100 Level 1 15 | . . . 14 29 . Level 2 . | . . . . . . Level 3 . | . . . . . . Level 4 . | . . . . . . Level 5 . | . . . . . . High Security . | . . . . . . Max Security . | . . . . . . Peak Influence 381 | 5 70 . 287 381 168 Initial 168 | . . . . 111 168 Average 84 | . 21 . 101 122 38 Influence Increases 2070 | 5 166 . 742 686 471 Destroy 0b10 Robot/C 1120 | . 100 . 380 380 260 Destroy 0b10 Robot/NC 70 | 5 5 . 35 20 5 Destroy Leader 318 | . 32 . 122 104 60 Successful Hack 24 | . 14 . . 10 . Disable Machine 180 | . . . 15 90 75 Destroy Structure 103 | . . . 55 37 11 Partial Spotted 15 | . . . . 15 . Lose Combat Pursuer 240 | . 15 . 135 30 60 Influence Decreases 2060 | 5 166 . 496 587 806 Entered New Map 312 | . . . . 135 177 Time Decay 1257 | 5 141 . 336 372 403 Lost Part 476 | . 10 . 160 80 226 Purge Threat 15 | . 15 . . . . Squads Dispatched 20 | . 1 . 5 8 6 Investigation 4 | . 1 . 1 . 2 Extermination 9 | . . . . 6 3 Reinforcement 7 | . . . 4 2 1 Assault . | . . . . . . Garrison . | . . . . . . Intercept . | . . . . . . Searches Triggered . | . . . . . . Construction Impeded 3 | . . . 3 . . Haulers Reinforced 1 | . . . . . 1 Active Scanning Responses . | . . . . . . Cargo Convoy Interrupts . | . . . . . . Stealth | -11 -10 -10 -8 -7 -6 --------- Run | Yrd Mat Sub Mat Fac Fac Distress Signals 4 | . 1 . 2 . 1 Communications Jammed . | . . . . . . Distress Signals . | . . . . . . Times Spotted 99 | . 11 7 32 26 23 Peak Tracking Total 5 | . 5 2 5 4 5 Tactical Retreats 10 | . 1 . 5 1 3 Traps | -11 -10 -10 -8 -7 -6 ------- Run | Yrd Mat Sub Mat Fac Fac Traps Triggered 6 | . 1 . . 1 4 Indirectly . | . . . . . . Trap Hack Attempts . | . . . . . . Triggered . | . . . . . . Disarmed . | . . . . . . Reprogrammed . | . . . . . . Reused . | . . . . . . Traps Extracted . | . . . . . . Installed . | . . . . . . Triggered . | . . . . . . Machines | -11 -10 -10 -8 -7 -6 ---------- Run | Yrd Mat Sub Mat Fac Fac Machines Disabled 12 | . . . 1 6 5 Max in Single Turn 5 | . . . 1 5 3 Machines Repaired . | . . . . . . Machines Dismantled . | . . . . . . Machines Sabotaged . | . . . . . . Overloaded Fab Kills . | . . . . . . Hacking | -11 -10 -10 -8 -7 -6 --------- Run | Yrd Mat Sub Mat Fac Fac Machines Accessed 16 | . 5 . 3 6 2 Terminals 16 | . 5 . 3 6 2 Fabricators . | . . . . . . Repair Stations . | . . . . . . Recycling Units . | . . . . . . Scanalyzers . | . . . . . . Garrison Access . | . . . . . . Total Hacks 35 | . 14 . 6 11 4 Successful 10 | . 6 . 1 3 . Failed 25 | . 8 . 5 8 4 Catastrophic 2 | . 1 . . . 1 Database Lockouts . | . . . . . . Manual 20 | . 11 . 7 2 . Terminals 35 | . 14 . 6 11 4 Fabricators . | . . . . . . Repair Stations . | . . . . . . Recycling Units . | . . . . . . Scanalyzers . | . . . . . . Garrison Access . | . . . . . . Terminal Hacks 10 | . 6 . 1 3 . Record 1 | . 1 . . . . Robot Analysis 2 | . 2 . . . . Prototype ID Bank 2 | . 1 . . 1 . Open DSF 1 | . . . . 1 . Branch Access Points 1 | . 1 . . . . Emergency Access Points 1 | . . . 1 . . Alert Level 1 | . . . . 1 . Unreport Threat 1 | . 1 . . . . Fabricator Hacks . | . . . . . . Repair Station Hacks . | . . . . . . Recycling Unit Hacks . | . . . . . . Scanalyzer . | . . . . . . Garrison Access Hacks . | . . . . . . Unauthorized Hacks . | . . . . . . Terminals . | . . . . . . Fabricators . | . . . . . . Repair Stations . | . . . . . . Recycling Units . | . . . . . . Scanalyzers . | . . . . . . Garrison Access . | . . . . . . Data Cores Recovered . | . . . . . . Used . | . . . . . . Hacking Detections 15 | . 5 . 3 5 2 Full Trace Events 6 | . 3 . 1 . 2 Feedback Events . | . . . . . . Feedback Blocked . | . . . . . . Robot Schematics Acquired . | . . . . . . Robots Built . | . . . . . . Authchips . | . . . . . . Time . | . . . . . . Total Robot Build Rating . | . . . . . . Part Schematics Acquired . | . . . . . . Parts Built . | . . . . . . Authchips . | . . . . . . Time . | . . . . . . Total Part Build Rating . | . . . . . . Parts Repaired . | . . . . . . Time . | . . . . . . Parts Recycled . | . . . . . . Recycled Matter . | . . . . . . Retrieved Matter . | . . . . . . Retrieved Components . | . . . . . . Parts Scanalyzed . | . . . . . . Part Schematics Acquired . | . . . . . . Parts Damaged . | . . . . . . Bothacking | -11 -10 -10 -8 -7 -6 ------------ Run | Yrd Mat Sub Mat Fac Fac Used RIF Installer . | . . . . . . Robots Hacked . | . . . . . . Non-combat . | . . . . . . Combat . | . . . . . . Robot Hacks Applied . | . . . . . . Relay Couplers Released . | . . . . . . Fabnet Peak Effective % . | . . . . . . Robots Rewired . | . . . . . . Allies Hacked . | . . . . . . Hacks Repelled . | . . . . . . Allies | -11 -10 -10 -8 -7 -6 -------- Run | Yrd Mat Sub Mat Fac Fac Total Allies . | . . . . . . Largest Group . | . . . . . . Highest-Rated Group . | . . . . . . Highest-Rated Ally . | . . . . . . Total Orders . | . . . . . . Ally Attacks . | . . . . . . Total Damage . | . . . . . . Kills . | . . . . . . Allies Corrupted . | . . . . . . Allies Melted . | . . . . . . Intel | -11 -10 -10 -8 -7 -6 ------- Run | Yrd Mat Sub Mat Fac Fac Active Infowar (turns) 3749 | 8 444 532 1097 1668 . Optics 2301 | . . . 633 1668 . Terrain 1870 | 8 444 532 886 . . Robot Analysis Total 2 | . 2 . . . . Derelict Logs Recovered . | . . . . . . Drone Launches 2 | . . . . . 2 Drone Recoveries 1 | . . . . . 1 Exploration | -11 -10 -10 -8 -7 -6 ------------- Run | Yrd Mat Sub Mat Fac Fac Turns Passed 7520 | 76 444 532 1097 3133 2238 Spaces Moved 2755 | 56 237 253 401 787 1021 Core 189 | 8 1 . 16 164 . Treads 740 | . . 212 334 . 194 Legs 1109 | . . . . 623 486 Wheels 376 | 48 236 41 51 . . Hover . | . . . . . . Flight 341 | . . . . . 341 Fastest Speed 50 | 50 95 115 115 120 106 Average Speed 224 | 89 111 152 188 367 179 Slowest Speed 1100 | 150 500 160 750 1100 410 Overloaded Moves . | . . . . . . Propulsion Burnouts . | . . . . . . Robots Hopped . | . . . . . . Potential Cave-ins . | . . . . . . Cave-ins Triggered . | . . . . . . Exploration Rate (%) 24 | 4 48 16 33 19 24 Regions Visited 5 Branch Regions 1 Pre-discovered Areas . | . . . . . . Known Exits Taken . | . . . . . . Unknown Exits Taken 5 | 1 1 1 1 1 . Scrap Searched . | . . . . . . Spaces Dug . | . . . . . . Terrain Destroyed 156 | . . 49 57 40 10 Melee . | . . . . . . Projectile 26 | . . . 23 . 3 AOE 130 | . . 49 34 40 7 Terrain Rammed . | . . . . . . Walls Destroyed . | . . . . . . Machines Disabled . | . . . . . . Actions | -11 -10 -10 -8 -7 -6 --------- Run | Yrd Mat Sub Mat Fac Fac Total 3575 | 77 373 315 590 919 1301 Wait 235 | . 102 . 47 7 79 Move 2750 | 55 236 252 400 786 1021 Hop . | . . . . . . Pick Up 128 | 12 10 6 21 36 43 Fast Attach 1 | . . . . . 1 Attach 76 | 7 1 3 16 17 32 Detach . | . . . . . . Swap 66 | 1 5 16 13 10 21 Drop 51 | . . 5 6 15 25 Fire 238 | 2 19 33 84 47 53 Melee . | . . . . . . Ram 1 | . . . 1 . . Kick 1 | . . . . 1 . Crush 11 | . . . 2 . 9 Escape Stasis . | . . . . . . Rewire 17 | . . . . . 17 Trap . | . . . . . . Miscellaneous . | . . . . . . Route ------- -11/Scrapyard -10/Materials (discovered 4 exits: [*Mat x2] / *Min / [*Sub]) -10/Subcaves -8/Materials -7/Factory -6/Factory History --------- Turn | Location | Event 16 | -11/Scrapyard | Discovered new exit (range 16) 77 | -11/Scrapyard | Entered Materials 132 | -10/Materials | Discovered new exit (range 9) 153 | -10/Materials | Discovered new exit (range 15) 311 | -10/Materials | Discovered new exit (range 10) 316 | -10/Materials | Build established: Mutant 320 | -10/Materials | Identified exit to Mines 470 | -10/Materials | Discovered new exit (range 10) 521 | -10/Materials | Entered Subcaves 522 | -10/Subcaves | Approached by a straggling Scientist 718 | -10/Subcaves | Shifting Twisted Machinery released Sub. Laser 732 | -10/Subcaves | Ambushed by angry Subdweller bent on revenge 742 | -10/Subcaves | Shifting Twisted Machinery released Mak. Kinetic Plating 835 | -10/Subcaves | Shifting Twisted Machinery released Sub. Machine Gun 952 | -10/Subcaves | Discovered new exit (range 7) 1004 | -10/Subcaves | Core integrity fell below 50% 1053 | -10/Subcaves | Entered Materials 1053 | -8/Materials | Evolved 4 slots: Propulsion x2, Utility x2 1694 | -8/Materials | Lost 4 parts (1p1n2w) 1937 | -8/Materials | Core integrity fell below 50% 1993 | -8/Materials | Discovered new exit (range 10) 1998 | -8/Materials | Lost 4 parts (1p2n1u) 2150 | -8/Materials | Entered Factory 2150 | -7/Factory | Evolved 2 slots: Weapon x2 2559 | -7/Factory | Build established: Tank 3536 | -7/Factory | Build established: Gunner 4308 | -7/Factory | Lost 3 parts (1p1u1w) 4472 | -7/Factory | Build established: Scavenger-Gunner 5248 | -7/Factory | Discovered new exit (range 12) 5283 | -7/Factory | Entered another Factory area 5283 | -6/Factory | Evolved 2 slots: Power x1, Utility x1 5491 | -6/Factory | Lost 3 parts (1p2w) 6491 | -6/Factory | Lost 9 parts (2p2n2u3w) 6737 | -6/Factory | Build established: Scavenger-Tank 6855 | -6/Factory | Spotted B-75 Beast 6963 | -6/Factory | Lost 11 parts (1p3n3u4w) 7155 | -6/Factory | Core integrity fell below 50% 7164 | -6/Factory | Core integrity fell below 20% 7521 | -6/Factory | Destroyed by Y-54 Guardian with Gatling Laser Last Messages --------------- 07402_ Acquired Lightning Gun. 07413_ System corrupted: Matter fused (-6). 07414_ Triggered Proton Bomb Trap. 07414_ A bubble of electromagnetic force engulfs the area. 07414_ Proton Bomb Trap short circuited. 07414_ Drone destroyed. 07414_ A bubble of electromagnetic force engulfs the area. 07423_ K-01 Serf cleans the TF Node. 07431_ Dropped Imp. Heat Sink. 07431_ Acquired Imp. Cooling System. 07440_ R-10 Processor collects Imp. Heat Sink. 07446_ K-01 Serf cleans the TF Node. 07456_ Imp. System Restoration Module purges 1% system corruption (4%). 07465_ Imp. System Restoration Module destroyed. 07473_ Lightning Gun destroyed. 07482_ System corrupted: Matter fused (-7). 07509_ T-07 Excavator is excavating. 07512_ S-27 Virus destroyed. 07515_ System corrupted: Heat flow error (+258). 07516_ Thermic Laser destroyed. Map ----- +----------------------------------------------------+ | | | | | | | | | | | | | | | | | | | | | ??????????????????###################????????????? | | ??????????????????# #????????????? | | ??????????????????# """"""""" #????????????? | | ??????????????????# ############## | | ??????????????????# """"""""" + | | ??????????????????# ##### #? | | ??????????????????# """"""""" #???# #? | | ??????????????????# #???# +? | | ??????????????????#########Y#############+##### #? | | ???????????????????????# #= #?# #? | | ???????????+############ # """" #?# #? | | ????????? *%[ # """" #?# #? | | ????????? + """" #?# #? | | ????????? # """" #?# #? | | ??????????# ############! #! #?# #? | | ???????????????????????# @ # """" """" #?# ## | | ???????????????????????### ##### """" """" #?# | | ?????????????????????????# #???# """" """" #?# #? | | ?????????????????????????# #???# """" """" #?# #? | | ?????????????????????????# #???# #?# #? | | ?????????????????????????# #???# #?# ## | | ?????????????????????????? #???#########+####?# ## | | ??????????????????????????##?????????# #?## ## | | ?????????????????????????????????????# ### % # | | ?????????????????????????????????????# " + | | ?????????????????????????????????????# ### # | | ?????????????????????????????????????# #?## ## | | ?????????????????????????????????????###/###### ## | | ????????????????????????????????###### ## #? | | ????????????????????????????????# + ## #? | | ????????????????????????######### # === ## ## | | ?????????????????????# !!! # === ## | | ????????????????????? !!! + === ## | | ?????????????????????# !! ## ## | | ?????????????????????# ?# "" ## | | ?????????????????????? ! ??# """## | | ?????????????????????? ??# R"## | | ??????????????????????? "" !???+ """## | | ?????????????????????????"" """^ ???# ## ## | | ?????????????????????????T """ ????####+##### #? | +----------------------------------------------------+ Best States ------------- Heat Dissipation 65 Energy Generation 31 Energy Capacity 520 Matter Stores 300 Matter Capacity 300 Sight Range 20 Terrain Scan Range 16 Terrain Scan Density 210 Armor Coverage 800 Resistance: KI 30 Evasion (%) 44 Core Analysis 6 Recoil Reduction 4 Offensive Hacking 10 Item Schematics ----------------- None Robot Schematics ------------------ None Fabricated ------------ Nothing Repaired ---------- Nothing Alien Tech Used ----------------- None Achievements -------------- Omniscient Cartographer Tank Challenges ------------ None Game ------ Seed HackingNeutrinoBooster Manual? 0 Play Time 01:07:09 Cumulative 10.4 hours Start 2025.08.31 @ 17:25:01 End 2025.09.13 @ 10:32:53 Sessions 3 Manual Loads 0 Difficulty Rogue Special Mode None Game No. 19 Rogue 19 Adventurer 0 Explorer 0 Win Type - Total 0 Types 0/0/0/0/0/0/0/0/0/0 Lore% 8 Gallery% 15 Achievement% 16 Wizard Run 0 Options --------- Layout 1 ASCII 0 Keyboard 0 Movement Mouse Keybinds 0 Fullscreen 1 Font 24/Smallcaps Map View 76x35 Zoom Use 0% Tactical HUD 1 Map Filters NONE Filters NONE Steam 1 RUN: f5fabaa8-b4b0-48be-9833-274c4217cd40